[Event "Vienna Championship-B 2022"]
[Site "Vienna"]
[Date "2022.09.20"]
[Round "4.15"]
[White "Kern, Julian"]
[Black "Mayrhuber, Franz"]
[Result "1-0"]
[ECO "D35"]
[WhiteElo "1694"]
[BlackElo "1718"]
[Annotator "NA COMBH"]
[PlyCount "137"]
[EventDate "2022.09.17"]
[EventType "swiss"]
[EventCountry "AUT"]
[SourceTitle "playchess.com"]
[Source "ChessBase"]
[SourceQuality "1"]
[TimeControl "5400+30"]

1. d4 {[%emt 0:00:02]} d5 {[%emt 0:05:57]} 2. c4 {[%emt 0:00:21]} e6 {[%emt 0:00:04]} 3. Nc3 {[%emt 0:00:10]} Nf6 {[%emt 0:00:04]} 4. cxd5 {[%emt 0:00:19]} exd5 {[%emt 0:00:02]} 5. Bg5 {[%emt 0:00:15]} c6 {[%emt 0:00:09]} 6. e3 {[%emt 0:00:34]} h6 {[%emt 0:00:10]} 7. Bh4 {[%emt 0:01:04]} Nbd7 {[%emt 0:00:33]} 8. Bd3 {[%emt 0:00:47]} Be7 {[%emt 0:00:54]} 9. Nge2 {[%emt 0:01:20]} O-O {[%emt 0:00:10]} 10. O-O {[%emt 0:00:25]} Re8 {[%emt 0:00:07]} 11. Rb1 {[%emt 0:01:13]} a5 {[%emt 0:01:29]} 12. a3 {[%emt 0:00:54]} Qc7 {[%emt 0:00:17]} 13. Bg3 {[%emt 0:02:41]} Bd6 {[%emt 0:00:19]} 14. Qc2 {[%emt 0:00:52]} Nh5 {[%emt 0:00:59]} 15. Nxd5 {[%emt 0:02:53]} Qb8 {[%emt 0:14:07]} 16. Bxd6 {[%emt 0:02:09]} Qxd6 {[%emt 0:00:04]} 17. Ndc3 {[%emt 0:02:47]} Nf8 {[%emt 0:00:32]} 18. Ne4 {[%emt 0:04:00]} Qe7 {[%emt 0:00:57]} 19. Qc5 {[%emt 0:04:04]} Qxc5 {[%emt 0:01:34]} 20. Nxc5 {[%emt 0:00:19]} Nf6 {[%emt 0:00:49]} 21. Ng3 {[%emt 0:05:38]} Ne6 {[%emt 0:02:06]} 22. h3 {[%emt 0:07:28]} Nxc5 {[%emt 0:01:11]} 23. dxc5 {[%emt 0:00:23]} Re5 {[%emt 0:01:24]} 24. b4 {[%emt 0:02:30]} axb4 {[%emt 0:01:37]} 25. axb4 {[%emt 0:00:11]} Ra3 {[%emt 0:00:19]} 26. Bc4 {[%emt 0:12:42]} Nd5 {[%emt 0:09:15]} 27. Bxd5 {[%emt 0:02:40]} Rxd5 {[%emt 0:00:14]} 28. Rfd1 {[%emt 0:01:16]} Be6 {[%emt 0:01:16]} 29. Rxd5 {[%emt 0:01:46]} Bxd5 {[%emt 0:01:02]} 30. Ne2 {[%emt 0:05:10]} Kf8 {[%emt 0:00:33]} 31. Nd4 {[%emt 0:02:20]} g6 {[%emt 0:00:49]} 32. Ne2 {[%emt 0:05:58]} Ke7 {[%emt 0:00:40]} 33. Nf4 {[%emt 0:02:04]} Bc4 {[%emt 0:01:14]} 34. Rb2 {[%emt 0:06:17]} Kf6 {[%emt 0:01:54]} 35. Rc2 {[%emt 0:04:32]} Ba6 {[%emt 0:00:23]} 36. Rd2 {[%emt 0:00:58]} h5 {[%emt 0:04:57]} 37. h4 {[%emt 0:01:03]} Rb3 {[%emt 0:00:47]} 38. Rd4 {[%emt 0:00:32]} Rb1+ {[%emt 0:01:14]} 39. Kh2 {[%emt 0:00:08]} Rb2 {[%emt 0:00:14]} 40. Kg3 {[%emt 0:00:52]} Ke7 {[%emt 0:00:50]} 41. Nh3 {[%emt 0:02:29]} Rc2 {[%emt 0:02:40]} 42. Ng5 {[%emt 0:01:16]} Bc4 {[%emt 0:00:21]} 43. Ne4 {[%emt 0:01:25]} Ba6 {[%emt 0:02:13]} 44. Nd6 {[%emt 0:00:48]} Rb2 {[%emt 0:03:29]} 45. Re4+ {[%emt 0:01:57]} Kf8 {[%emt 0:01:32]} 46. Rf4 {[%emt 0:05:42]} f5 {[%emt 0:01:24]} 47. e4 {[%emt 0:00:59]} Rb3+ {[%emt 0:02:18]} 48. f3 {[%emt 0:01:28]} Rxb4 {[%emt 0:00:23]} 49. exf5 {[%emt 0:00:18]} Rxf4 {[%emt 0:00:58]} 50. Kxf4 {[%emt 0:00:06]} Kg7 {[%emt 0:01:10]} 51. Kg5 {[%emt 0:01:17]} gxf5 {[%emt 0:00:58]} 52. Nxf5+ {[%emt 0:00:18]} Kf7 {[%emt 0:00:17]} 53. Nd6+ {[%emt 0:00:50]} Ke6 {[%emt 0:00:07]} 54. Kxh5 {[%emt 0:00:14]} Kd5 {[%emt 0:00:06]} 55. Ne4 {[%emt 0:00:32]} Bd3 {[%emt 0:00:21]} 56. Kg5 {[%emt 0:00:27]} Bf1 {[%emt 0:03:43]} 57. g4 {[%emt 0:00:57]} Bg2 {[%emt 0:00:41]} 58. Kf4 {[%emt 0:00:22]} Ke6 {[%emt 0:00:38]} 59. h5 {[%emt 0:00:30]} Bf1 {[%emt 0:01:21]} 60. h6 {[%emt 0:02:38]} Kf7 {[%emt 0:00:12]} 61. Kg5 {[%emt 0:00:47]} Bd3 {[%emt 0:00:41]} 62. Nd6+ {[%emt 0:00:21]} Kg8 {[%emt 0:00:16]} 63. Nxb7 {[%emt 0:00:28]} Be2 {[%emt 0:00:18]} 64. f4 {[%emt 0:00:24]} Bf3 {[%emt 0:00:07]} 65. Nd6 {[%emt 0:00:39]} Bd5 {[%emt 0:00:17]} 66. f5 {[%emt 0:00:14]} Kh7 {[%emt 0:00:12]} 67. f6 {[%emt 0:00:34]} Kg8 {[%emt 0:00:24]} 68. f7+ {[%emt 0:00:20]} Kh7 {[%emt 0:36:07]} 69. f8=Q 1-0

[Event "Vienna Championship-B 2022"]
[Site "Vienna"]
[Date "2022.09.20"]
[Round "4.16"]
[White "Stadlinger, Lukas"]
[Black "Powell, Joshua"]
[Result "1-0"]
[ECO "D00"]
[WhiteElo "1729"]
[BlackElo "1738"]
[Annotator "NA COMBH"]
[PlyCount "41"]
[EventDate "2022.09.17"]
[EventType "swiss"]
[EventCountry "AUT"]
[SourceTitle "playchess.com"]
[Source "ChessBase"]
[SourceQuality "1"]
[TimeControl "5400+30"]

1. d4 {[%emt 0:01:18]} d5 {[%emt 0:01:01]} 2. Bf4 {[%emt 0:01:09]} Bf5 {[%emt 0:03:09]} 3. Nc3 {[%emt 0:00:54]} e6 {[%emt 0:00:37]} 4. f3 {[%emt 0:02:00]} c6 {[%emt 0:05:30]} 5. g4 {[%emt 0:02:30]} Bg6 {[%emt 0:02:26]} 6. h4 {[%emt 0:03:39]} h6 {[%emt 0:04:56]} 7. e3 {[%emt 0:02:56]} Nf6 {[%emt 0:03:47]} 8. Bd3 {[%emt 0:02:40]} Bh7 {[%emt 0:04:54]} 9. Nge2 {[%emt 0:07:44]} Nbd7 {[%emt 0:03:53]} 10. Qd2 {[%emt 0:05:00]} c5 {[%emt 0:04:44]} 11. Bxh7 {[%emt 0:03:09]} Nxh7 {[%emt 0:05:24]} 12. Nb5 {[%emt 0:05:05]} e5 {[%emt 0:11:15]} 13. dxe5 {[%emt 0:04:42]} a6 {[%emt 0:07:32]} 14. Nbc3 {[%emt 0:05:15]} Nb6 {[%emt 0:00:58]} 15. O-O-O {[%emt 0:03:04]} g5 {[%emt 0:03:55]} 16. Bg3 {[%emt 0:02:39]} Nc4 {[%emt 0:02:01]} 17. Qd3 {[%emt 0:07:44]} gxh4 {[%emt 0:03:00]} 18. Bxh4 {[%emt 0:03:14]} Nxe5 {[%emt 0:06:53]} 19. Qf5 {[%emt 0:03:54]} Qb8 {[%emt 0:10:52]} 20. Rxd5 {[%emt 0:01:14]} Nc6 {[%emt 0:01:22]} 21. Qd7# {[%emt 0:01:03]} 1-0

[Event "Vienna Championship-B 2022"]
[Site "Vienna"]
[Date "2022.09.21"]
[Round "5.2"]
[White "Bonk, Andras"]
[Black "Anastasakis, Georgios"]
[Result "1-0"]
[ECO "E67"]
[WhiteElo "2175"]
[BlackElo "1893"]
[Annotator "TA"]
[PlyCount "77"]
[EventDate "2022.09.17"]
[EventType "swiss"]
[EventCountry "AUT"]
[SourceTitle "playchess.com"]
[Source "ChessBase"]
[SourceQuality "1"]
[TimeControl "5400+30"]

{[%evp 20,77,-9,-26,0,-50,-52,-42,-42,-44,-49,-63,-55,-62,-12,-12,-12,-12,-12,-25,-18,-58,12,0,35,24,66,20,27,32,38,23,30,22,161,220,179,216,1239,1223,1529,1522,1529,1528,1515,1015,981,971,1516,1503,1458,1448,1312,1294,1309,1272,6444,6088,5547,5389]} 1. c4 {[%emt 0:00:03]} Nf6 {[%emt 0:00:07]} 2. Nc3 {[%emt 0:00:05]} g6 {[%emt 0:00:16]} 3. Nf3 {[%emt 0:00:41]} Bg7 {[%emt 0:00:10]} 4. g3 {[%emt 0:02:21]} O-O {[%emt 0:00:35]} 5. Bg2 {[%emt 0:00:32]} d6 {[%emt 0:00:35]} 6. O-O {[%emt 0:01:16]} Nbd7 {[%emt 0:02:50]} 7. d4 {[%emt 0:01:32]} e5 {[%emt 0:01:05]} 8. h3 {[%emt 0:02:01]} c6 {[%emt 0:01:14]} 9. dxe5 {[%emt 0:01:58]} dxe5 {[%emt 0:00:10]} 10. Be3 {[%emt 0:01:03]} Qe7 {[%emt 0:02:51]} 11. Qb3 {[%emt 0:03:20]} Nh5 {[%emt 0:17:49] E67: King's Indian: Fianchetto: 6...Nbd7.} 12. c5 {[%emt 0:06:39]} (12. Rad1 $11) 12... Kh8 $15 {[%emt 0:10:01]} ({Much less strong is} 12... Nxc5 13. Qa3 b6 14. Na4 $16 (14. Ne4 f5 $11)) 13. Ne4 {[%emt 0:23:40]} f5 {[%emt 0:10:44] Black is slightly better.} 14. Bg5 {[%emt 0:00:20]} Nhf6 {[%emt 0:02:07] [#]} 15. Bxf6 $146 {[%emt 0:04:39]} ({Predecessor:} 15. Nxf6 Nxf6 16. Qe3 e4 17. Nd2 Be6 18. Rfd1 Rfe8 19. Nb3 Qf8 20. Nd4 Bf7 21. Qa3 {0-1 (50) Carvalho,F-Gligoric,S Mar del Plata 1953}) 15... Nxf6 {[%emt 0:11:52]} 16. Nd6 {[%emt 0:01:21]} Nd5 {[%emt 0:00:17]} (16... e4 $15 17. Nd4 Nd5) 17. e4 $11 {[%emt 0:02:47]} fxe4 {[%emt 0:00:08]} 18. Nxe4 {[%emt 0:05:14]} Be6 {[%emt 0:03:28]} 19. Qa3 {[%emt 0:11:43]} Nc7 {[%emt 0:03:58]} 20. Nd6 {[%emt 0:04:05]} e4 {[%emt 0:11:46]} ({Black should try} 20... b6 $15) 21. Nd2 {[%emt 0:02:01]} e3 {[%emt 0:04:18]} 22. Qxe3 {[%emt 0:01:57]} Qd7 {[%emt 0:01:13]} 23. h4 {[%emt 0:05:23]} (23. N2e4 $14) 23... Bxb2 {[%emt 0:03:53] This bishop pair is nice.} 24. Rab1 {[%emt 0:00:36]} Qg7 {[%emt 0:00:39] [#]} 25. Rxb2 {[%emt 0:01:58]} Qxb2 {[%emt 0:00:06]} 26. Rb1 $36 {[%emt 0:00:05][%mdl 2048] White has the initiative.} Qf6 {[%emt 0:02:25] Loses the game.} (26... Qg7 $1 $11 {and Black has nothing to worry.}) 27. Rxb7 $18 {[%emt 0:01:30]} Nd5 {[%emt 0:00:11] [#]} 28. Qh6 {[%emt 0:00:53][%csl Gb7][%cal Rh6h7] Dancing on a razor blade.} ({Resist} 28. Qe1 $6 Bf5 $14) 28... Qxf2+ $2 {[%emt 0:04:04]} (28... Bg8 29. N2e4 Qa1+ 30. Kh2 Rab8) 29. Kh2 {[%emt 0:00:34][%csl Gb7][%cal Rh6h7] White is clearly winning.} Bf7 {[%emt 0:02:57]} 30. N2e4 {[%emt 0:01:01]} Qe3 {[%emt 0:00:08]} 31. Ng5 {[%emt 0:01:07][%csl Gg5][%cal Rh6h7]} Nf6 {[%emt 0:00:59]} 32. Ngxf7+ {[%emt 0:02:59]} Rxf7 {[%emt 0:00:02]} 33. Nxf7+ {[%emt 0:00:44]} Kg8 {[%emt 0:00:01]} 34. Qxe3 {[%emt 0:00:40]} ({Don't go for} 34. Rb8+ $2 Rxb8 35. Qxe3 Ng4+ 36. Kh3 Nxe3 $19) 34... Ng4+ {[%emt 0:00:10]} 35. Kh3 {[%emt 0:02:06] Intending Nh6+ and mate.} Nxe3 {[%emt 0:00:02]} 36. Bxc6 {[%emt 0:00:52]} Rc8 {[%emt 0:00:17]} 37. Ne5 {[%emt 0:00:32]} Nf5 {[%emt 0:00:20]} 38. Bd5+ {[%emt 0:00:31]} Kh8 {[%emt 0:00:08]} 39. Nf7+ {[%emt 0:00:20] Weighted Error Value: White=0.10 (very precise) /Black=0.29 (precise)} 1-0

[Event "Vienna Championship-B 2022"]
[Site "Vienna"]
[Date "2022.09.21"]
[Round "5.3"]
[White "Deak-Sala, Emilia"]
[Black "Zetthofer, Gerald"]
[Result "1-0"]
[ECO "D02"]
[WhiteElo "1787"]
[BlackElo "2153"]
[Annotator "TA"]
[PlyCount "65"]
[EventDate "2022.09.17"]
[EventType "swiss"]
[EventCountry "AUT"]
[SourceTitle "playchess.com"]
[Source "ChessBase"]
[SourceQuality "1"]
[TimeControl "5400+30"]

{[%evp 11,65,2,6,0,0,-35,-27,-71,-62,-81,-57,-58,-59,-50,-62,-55,0,0,27,-132,-24,-24,-24,-24,-19,-25,-25,-16,0,-23,7,-21,0,0,0,-25,-6,-16,23,23,34,23,39,22,65,38,439,416,612,595,954,860,882,832,29981,29982]} 1. d4 {[%emt 0:00:03]} Nf6 {[%emt 0:00:19]} 2. Bf4 {[%emt 0:00:05]} d5 {[%emt 0:00:14]} 3. e3 {[%emt 0:00:03]} c5 {[%emt 0:01:03]} 4. c3 {[%emt 0:00:03]} e6 {[%emt 0:01:57]} 5. Nf3 {[%emt 0:00:04]} Nc6 {[%emt 0:00:25]} 6. Nbd2 {[%emt 0:00:07]} Be7 {[%emt 0:03:42] 6...Nh5 is setting a new trend.} 7. Bb5 {[%emt 0:01:57] D02: 1 d4 d5 2 Nf3 sidelines, including 2...Nf6 3 g3 and 2...Nf6 3 Bf4.} Qb6 {[%emt 0:01:42]} 8. Bxc6+ {[%emt 0:00:52]} bxc6 {[%emt 0:00:22]} 9. Qb3 {[%emt 0:02:50] Black has an edge.} Ba6 {[%emt 0:02:43]} 10. Ne5 {[%emt 0:01:53]} Rc8 {[%emt 0:03:06]} 11. Qxb6 {[%emt 0:07:59]} axb6 {[%emt 0:00:12] [#]} 12. a4 $146 {[%emt 0:01:14]} ({Predecessor:} 12. dxc5 Bxc5 13. Nb3 Be7 14. Nd4 Bb7 15. O-O Nd7 16. Nxd7 Kxd7 17. Rfd1 Ra8 18. a3 {½-½ (81) Rousseau,M (1867)-Diaz Hernandez,A Tornelo INT 2021}) 12... Nh5 {[%emt 0:01:14]} 13. a5 {[%emt 0:03:43]} Nxf4 {[%emt 0:01:04]} (13... f6 $15 14. Nef3 bxa5 15. Rxa5 Ra8 16. dxc5 Nxf4 17. exf4 Kd7) 14. exf4 $11 {[%emt 0:01:28]} b5 {[%emt 0:01:16]} 15. Rc1 $2 {[%emt 0:17:58] [#]} (15. dxc5 $11 Bxc5 16. b4) 15... c4 {[%emt 0:04:48]} (15... b4 $1 $17 16. dxc5 f6) 16. b4 $1 {[%emt 0:05:13]} cxb3 {[%emt 0:12:43]} 17. Nxb3 {[%emt 0:00:21]} b4 {[%emt 0:00:12]} 18. Kd2 {[%emt 0:13:55]} bxc3+ {[%emt 0:05:12]} 19. Kxc3 {[%emt 0:00:21]} Bb5 {[%emt 0:06:15]} 20. Nd3 {[%emt 0:08:35]} Rb8 {[%emt 0:03:48] [#] And now ...Bxd3 would win.} 21. Ndc5 {[%emt 0:02:52]} g5 {[%emt 0:01:12]} 22. fxg5 {[%emt 0:01:57]} Bxg5 {[%emt 0:00:09] A strong pair of Bishops.} 23. Rce1 {[%emt 0:00:33]} Ke7 {[%emt 0:01:37]} 24. g3 {[%emt 0:00:44]} Kd6 {[%emt 0:03:12]} 25. f4 {[%emt 0:03:23][%cal Bf2f4,Bf4f5,Bf5e6,Be6f7][%mdl 32]} Bf6 {[%emt 0:00:23]} 26. Re3 {[%emt 0:02:55]} h5 {[%emt 0:09:13]} 27. Rhe1 {[%emt 0:03:04][%cal Re3e6] Black must now prevent Rxe6+!} Rhe8 {[%emt 0:03:05]} 28. f5 {[%emt 0:00:46][%cal Rf5e6] The board is on fire.} Bc4 $2 {[%emt 0:03:56][%mdl 8192] Loses the game.} ({Better is} 28... e5 $14 29. Rxe5 Bxe5 30. dxe5+ Kc7) 29. fxe6 $18 {[%emt 0:01:55]} (29. Nd2 Bd8 30. Nxc4+ dxc4 $18) 29... Bxb3 {[%emt 0:01:23]} (29... Bg5 $142 30. Rf3 (30. Re5 f6 $18) 30... f5 31. Rxf5 Bd8 32. Ne4+ dxe4 33. Kxc4 Rb5) 30. exf7 {[%emt 0:02:50]} ({Inferior is} 30. Nxb3 fxe6 31. Rf1 Bh8 $15) 30... Bxd4+ {[%emt 0:05:18]} 31. Kxd4 {[%emt 0:00:21] Re6+ would kill now.} Rb4+ {[%emt 0:00:39]} 32. Kc3 {[%emt 0:11:29]} Rc4+ {[%emt 0:00:47]} 33. Kb2 {[%emt 0:01:28] Weighted Error Value: White=0.17 (very precise) /Black=0.80} 1-0

[Event "Vienna Championship-B 2022"]
[Site "Vienna"]
[Date "2022.09.21"]
[Round "5.4"]
[White "Gratze, Michael"]
[Black "Andresen, Erik"]
[Result "0-1"]
[ECO "E63"]
[WhiteElo "1954"]
[BlackElo "1879"]
[Annotator "TA"]
[PlyCount "152"]
[EventDate "2022.09.17"]
[EventType "swiss"]
[EventCountry "AUT"]
[SourceTitle "playchess.com"]
[Source "ChessBase"]
[SourceQuality "1"]
[TimeControl "5400+30"]

{[%evp 16,152,32,20,38,37,45,0,12,0,0,-24,4,2,0,0,0,0,42,46,29,-12,-12,-12,-12,-12,0,-16,-13,-7,-14,-32,0,0,0,0,7,4,33,4,4,6,87,82,85,85,83,69,102,-22,33,31,49,31,37,0,28,0,122,0,0,-214,-190,-200,-186,-198,-202,-192,-195,-171,-136,-120,717,698,587,654,885,955,1256,1209,4702,1481,29987,6087,29990,756,760,722,1045,664,634,624,5683,754,29987,29988,29988,29989,29989,29990,29990,29991,29991,29990,29990,29973,29970,29974,12836,5691,5089,5081,4133,4133,1085,850,644,561,1307,1320,835,516,599,0,0,185,225,0,0,0,0,0,0,0,0,0,0,-5110,-4884]} 1. Nf3 {[%emt 0:00:02]} Nf6 {[%emt 0:00:11]} 2. c4 {[%emt 0:00:04]} g6 {[%emt 0:00:04]} 3. d4 {[%emt 0:00:04]} Bg7 {[%emt 0:00:04]} 4. g3 {[%emt 0:00:03]} O-O {[%emt 0:00:07]} 5. Bg2 {[%emt 0:00:02]} d6 {[%emt 0:00:07]} 6. Nc3 {[%emt 0:00:04]} a6 {[%emt 0:00:05]} 7. O-O {[%emt 0:00:06]} Nc6 {[%emt 0:00:04]} 8. b3 {[%emt 0:00:10] 8.Bf4 is the recent fashion.} Rb8 {[%emt 0:00:06]} 9. Nd5 {[%emt 0:00:11]} Nd7 {[%emt 0:11:58] E63: King's Indian: Fianchetto: Panno Variation with 7...a6.} 10. Bb2 {[%emt 0:05:11]} e6 {[%emt 0:00:44]} 11. Nc3 {[%emt 0:00:14]} b5 {[%emt 0:01:30] The position is equal.} 12. cxb5 {[%emt 0:01:19]} axb5 {[%emt 0:00:12]} 13. d5 {[%emt 0:00:48]} Ne7 {[%emt 0:12:37]} 14. dxe6 {[%emt 0:01:36]} fxe6 {[%emt 0:01:48]} 15. Nd4 {[%emt 0:00:08]} Nc5 {[%emt 0:02:02]} 16. b4 {[%emt 0:02:18] [#]} Na4 $146 {[%emt 0:02:56]} ({Predecessor:} 16... Na6 17. a3 c5 18. bxc5 dxc5 19. Nf3 Qa5 20. Qc2 b4 21. Ne4 b3 22. Qc1 Nd5 23. Bxg7 Kxg7 {1-0 (47) Arkell,K (2497)-Eames,R (2237) England 2015}) 17. Nxa4 {[%emt 0:00:18]} bxa4 {[%emt 0:00:06]} 18. Qxa4 {[%emt 0:05:43]} c5 {[%emt 0:05:52]} 19. Nc6 {[%emt 0:00:10]} Nxc6 {[%emt 0:00:18]} 20. Bxg7 {[%emt 0:00:09]} Rxb4 {[%emt 0:02:36]} 21. Qc2 {[%emt 0:07:13]} Kxg7 {[%emt 0:00:32]} 22. Bxc6 {[%emt 0:00:05]} Qb6 {[%emt 0:09:19]} 23. Bf3 {[%emt 0:00:56]} Rb2 {[%emt 0:04:11]} 24. Rfb1 {[%emt 0:00:35]} Rxc2 {[%emt 0:05:41]} 25. Rxb6 {[%emt 0:00:02]} d5 {[%emt 0:00:35]} 26. a4 {[%emt 0:04:33]} Rf7 {[%emt 0:02:37]} 27. a5 {[%emt 0:01:03]} (27. Rc6 $5 {[%cal Rc6c8]} Bd7 28. Rd6 $11) 27... Ra7 {[%emt 0:11:47]} 28. a6 {[%emt 0:01:16]} Kf7 {[%emt 0:01:33]} (28... c4 $11) 29. e4 $16 {[%emt 0:08:10]} d4 {[%emt 0:01:42]} 30. e5 {[%emt 0:00:01]} d3 {[%emt 0:02:21]} 31. Bd1 $1 {[%emt 0:00:22]} Rc3 {[%emt 0:04:06]} 32. Rc6 {[%emt 0:00:16] [#]} (32. Kf1 $1 $16) 32... Bd7 {[%emt 0:08:28]} ({Better is} 32... d2 $1 $11 33. Ra2 (33. Rxc8 $2 Rc1 $19) 33... Rc1 34. Rxd2 Bxa6) 33. Rd6 $14 {[%emt 0:00:01] Kf1 is the strong threat.} Bb5 $1 {[%emt 0:00:18][%cal Oa7a6]} 34. Kg2 {[%emt 0:01:59] Hoping for Rb6.} Bc4 {[%emt 0:00:41]} 35. Bf3 {[%emt 0:00:47]} Rc2 {[%emt 0:10:42]} 36. Rb6 {[%emt 0:01:00] Black must now prevent Rb7+.} Bd5 {[%emt 0:00:00] [#] Against Rb7+} (36... d2 $1 $11 {keeps the balance.} 37. Rb7+ Kf8 38. Rxa7 Rc1 39. Ra8+ Ke7 40. Ra7+ Kf8 41. Ra8+ Ke7 42. Ra7+ Kf8) 37. Rab1 {[%emt 0:02:25]} (37. Bxd5 exd5 38. Rab1 d2 39. Rb7+ Ke6 40. Rxa7 Rc1 41. Rb6+ Kxe5 42. Re7+ Kd4 $17) (37. Rb7+ $1 $16 {[%mdl 512]} Bxb7 38. axb7 Rxb7 39. Bxb7) 37... d2 {[%emt 0:00:00]} 38. Bxd5 $2 {[%emt 0:00:13]} (38. Rb7+ $1 $11 Rxb7 39. axb7) 38... exd5 $11 {[%emt 0:00:00][%mdl 4096] Endgame KRR-KRR} 39. Rb7+ {[%emt 0:00:10]} Ke6 $1 {[%emt 0:00:00]} 40. Rxa7 {[%emt 0:01:35]} Rc1 {[%emt 0:00:00]} 41. Rb6+ {[%emt 0:00:04]} Kxe5 {[%emt 0:00:00]} 42. Re7+ {[%emt 0:00:39]} Kd4 {[%emt 0:00:00][%mdl 1024] Black has strong compensation.} 43. a7 {[%emt 0:00:35]} d1=Q $4 {[%emt 0:00:00][%mdl 8192]} (43... Ra1 $17 44. Rd6 d1=Q 45. Rxd5+ Kxd5 46. Rd7+ Ke4 47. Rxd1 Rxa7) 44. a8=Q $18 {[%emt 0:00:03] Strongly threatening Rd6.} Qf1+ {[%emt 0:00:00]} 45. Kf3 {[%emt 0:00:17][%cal Oe7e4]} Rc3+ {[%emt 0:00:00]} 46. Kg4 {[%emt 0:00:13] White threatens Qh8+ and mate.} Qd1+ {[%emt 0:00:00]} 47. Kg5 {[%emt 0:02:28]} ({Worse is} 47. Kh3 Qh5+ 48. Kg2 Qf3+ 49. Kh3 Qh5+ 50. Kg2 Qf3+ 51. Kh3 Qh5+ $11) 47... Qh5+ {[%emt 0:02:37]} 48. Kf6 {[%emt 0:00:08] Threatening mate with Qa4+.} g5 {[%emt 0:00:32]} 49. Kg7 {[%emt 0:01:01]} (49. Qa4+ $142 c4 50. Kg7 Qf3 51. Rb2 Kd3 52. Qa2 Rc2 53. Rxc2 c3 54. Rxc3+ $3 {[%mdl 512]} Kxc3 55. Qa3+ Kd4 56. Qxf3) 49... g4 {[%emt 0:00:38]} 50. Qh8 {[%emt 0:02:13]} (50. Qa4+ $142 c4 51. Qa7 Qe5+ 52. Rf6+ Kd3 53. Rxe5 Rb3 54. Rfe6 d4 55. Re2) 50... Kc4 {[%emt 0:00:28]} 51. Qxh7 {[%emt 0:02:33]} Qg5+ {[%emt 0:00:42]} 52. Kf8 {[%emt 0:00:15] aiming for Qb1.} Rf3+ {[%emt 0:00:17]} 53. Ke8 {[%emt 0:00:19] White wants to mate with Qc2+.} Rxf2 {[%emt 0:00:18]} 54. Re1 {[%emt 0:01:20]} Rf8+ {[%emt 0:02:55]} 55. Kxf8 {[%emt 0:00:20]} Qd8+ {[%emt 0:00:01]} 56. Re8 {[%emt 0:00:25]} Qxb6 {[%emt 0:00:04]} 57. Qc2+ {[%emt 0:00:20]} Kd4 {[%emt 0:00:20]} 58. Qf2+ {[%emt 0:00:30]} Kc4 {[%emt 0:00:09]} 59. Qe2+ {[%emt 0:00:32]} Kd4 {[%emt 0:00:29]} 60. Qe5+ {[%emt 0:00:51]} Kc4 {[%emt 0:00:05]} 61. Qf4+ {[%emt 0:01:14]} d4 {[%emt 0:00:07]} 62. Qc1+ {[%emt 0:00:30]} Kd3 {[%emt 0:00:46]} 63. Qd1+ {[%emt 0:00:30]} Kc3 {[%emt 0:00:21]} 64. Qe1+ {[%emt 0:01:37]} Kd3 {[%emt 0:00:19]} 65. Qe4+ {[%emt 0:00:21]} Kc3 {[%emt 0:00:15]} 66. Qxg4 {[%emt 0:00:49]} Qf6+ {[%emt 0:00:19]} 67. Kg8 {[%emt 0:00:20]} c4 {[%emt 0:00:05]} 68. Ra8 {[%emt 0:00:41]} Qd6 {[%emt 0:01:40]} 69. Rf8 $2 {[%emt 0:00:21]} (69. Qf5) 69... Qd5+ {[%emt 0:01:25]} 70. Kh7 {[%emt 0:02:40]} d3 {[%emt 0:00:01] [#]} 71. Qg7+ $2 {[%emt 0:00:29]} ({White has to play} 71. Rf1 $1 $18 {[%cal Rf1c1] Threatens to win with Rc1+.} d2 72. Qd1) 71... Kc2 $11 {[%emt 0:00:43]} 72. Rf2+ {[%emt 0:13:39]} d2 {[%emt 0:00:05]} 73. Qa7 {[%emt 0:07:36]} c3 {[%emt 0:01:42]} 74. Qa4+ {[%emt 0:01:56]} Kd3 {[%emt 0:00:22]} 75. Qa6+ {[%emt 0:00:10]} Kc2 {[%emt 0:00:23] And now ...Qd3+ would win. Really sharp!} 76. Qf1 $2 {[%emt 0:04:28][%mdl 8192]} (76. Qa4+ $11 Qb3 77. Qd4) 76... Qd3+ {[%emt 0:00:16] Both players deserved the win here.  Weighted Error Value: White=0.25 (precise) /Black=0.40} ({Not} 76... Qh5+ 77. Kg7 $17) 0-1